[Event "*** Titled Tuesday Blitz"]
[Site "Chess.com"]
[Date "2021.02.16"]
[Round "3"]
[White "Fusikk"]
[Black "safikiet"]
[Result "1-0"]
[WhiteElo "2709"]
[BlackElo "2318"]
[TimeControl "180+1"]
[EndTime "10:31:29 PST"]
[Termination "Fusikk won by resignation"]

1. e4 {[%clk 0:03:00.9]} 1... e5 {[%clk 0:02:58.9]} 2. Nf3 {[%clk 0:03:00.6]}
2... Nc6 {[%clk 0:02:58.7]} 3. Bb5 {[%clk 0:03:01]} 3... a6 {[%clk 0:02:58.4]}
4. Ba4 {[%clk 0:03:01.1]} 4... d6 {[%clk 0:02:58.7]} 5. O-O {[%clk 0:02:59.8]}
5... Bd7 {[%clk 0:02:58.4]} 6. d4 {[%clk 0:02:59.5]} 6... b5 {[%clk 0:02:52.2]}
7. Bb3 {[%clk 0:02:58.5]} 7... exd4 {[%clk 0:02:52.2]} 8. c3 {[%clk 0:02:47.8]}
8... d3 {[%clk 0:02:08.6]} 9. Qxd3 {[%clk 0:02:40.3]} 9... Nf6 {[%clk
0:02:03.3]} 10. Bg5 {[%clk 0:02:35.9]} 10... Be7 {[%clk 0:02:01.6]} 11. Nbd2
{[%clk 0:02:35.7]} 11... O-O {[%clk 0:02:00]} 12. Rae1 {[%clk 0:02:31.9]} 12...
Ng4 {[%clk 0:01:43.5]} 13. Bxe7 {[%clk 0:02:20]} 13... Qxe7 {[%clk 0:01:44.4]}
14. Qe2 {[%clk 0:02:20.6]} 14... Nge5 {[%clk 0:01:41]} 15. Nd4 {[%clk
0:02:20.1]} 15... Na5 {[%clk 0:01:33.9]} 16. f4 {[%clk 0:02:10.7]} 16... Nxb3
{[%clk 0:01:28.7]} 17. axb3 {[%clk 0:02:11.6]} 17... Nc6 {[%clk 0:01:23.8]} 18.
N2f3 {[%clk 0:02:02.7]} 18... Rfe8 {[%clk 0:01:17.3]} 19. b4 {[%clk 0:01:49]}
19... Nxd4 {[%clk 0:01:09.7]} 20. Nxd4 {[%clk 0:01:49.9]} 20... c5 {[%clk
0:01:05.4]} 21. Nc2 {[%clk 0:01:26.8]} 21... Bc6 {[%clk 0:00:59.4]} 22. e5
{[%clk 0:01:12.9]} 22... dxe5 {[%clk 0:00:54.4]} 23. Qxe5 {[%clk 0:01:13.8]}
23... Qxe5 {[%clk 0:00:41.4]} 24. fxe5 {[%clk 0:01:07.8]} 24... cxb4 {[%clk
0:00:30.3]} 25. Nxb4 {[%clk 0:01:08.7]} 25... Bd7 {[%clk 0:00:22.5]} 26. Nd5
{[%clk 0:01:07.4]} 26... Ra7 {[%clk 0:00:20.1]} 27. Rf2 {[%clk 0:00:54.1]} 27...
Be6 {[%clk 0:00:19.1]} 28. Nb4 {[%clk 0:00:51.2]} 28... a5 {[%clk 0:00:18.2]}
29. Nc6 {[%clk 0:00:51.3]} 29... Ra6 {[%clk 0:00:18.1]} 30. Nd4 {[%clk
0:00:51.8]} 30... Bc4 {[%clk 0:00:17.7]} 31. b3 {[%clk 0:00:49.2]} 31... Bd5
{[%clk 0:00:17.4]} 32. Nxb5 {[%clk 0:00:46.9]} 32... Rc6 {[%clk 0:00:12.2]} 33.
c4 {[%clk 0:00:45.4]} 33... Be6 {[%clk 0:00:12.4]} 34. Ra2 {[%clk 0:00:43.9]}
34... Ra8 {[%clk 0:00:12.3]} 35. Rea1 {[%clk 0:00:41.9]} 35... Rc5 {[%clk
0:00:12.4]} 36. Rxa5 {[%clk 0:00:41.5]} 36... Rxa5 {[%clk 0:00:11.7]} 37. Rxa5
{[%clk 0:00:42.4]} 37... h6 {[%clk 0:00:12]} 38. Ra8+ {[%clk 0:00:34.5]} 38...
Kh7 {[%clk 0:00:11.3]} 39. Nd4 {[%clk 0:00:34.7]} 39... Bg4 {[%clk 0:00:07.7]}
40. h3 {[%clk 0:00:32.9]} 40... Bh5 {[%clk 0:00:06.8]} 41. e6 {[%clk 0:00:29.5]}
41... fxe6 {[%clk 0:00:06.3]} 42. Nxe6 {[%clk 0:00:30.4]} 42... Rc6 {[%clk
0:00:03.5]} 43. Nf8+ {[%clk 0:00:27.7]} 43... Kg8 {[%clk 0:00:03.8]} 44. g4
{[%clk 0:00:20.5]} 44... Bf7 {[%clk 0:00:03.2]} 45. Nd7+ {[%clk 0:00:20.5]}
45... Kh7 {[%clk 0:00:02.8]} 46. Ne5 {[%clk 0:00:20.9]} 46... Rc7 {[%clk
0:00:02.4]} 47. Nxf7 {[%clk 0:00:20.7]} 47... Rxf7 {[%clk 0:00:03.3]} 48. Rb8
{[%clk 0:00:21.2]} 48... Rf3 {[%clk 0:00:03.1]} 49. Kg2 {[%clk 0:00:21.7]} 49...
Rd3 {[%clk 0:00:03.2]} 50. c5 {[%clk 0:00:20.9]} 50... Rd2+ {[%clk 0:00:03]} 51.
Kf3 {[%clk 0:00:21]} 51... Rc2 {[%clk 0:00:03.9]} 52. b4 {[%clk 0:00:20.8]}
52... Rc3+ {[%clk 0:00:04.3]} 53. Kf4 {[%clk 0:00:21.2]} 1-0

[Event "*** Titled Tuesday Blitz"]
[Site "Chess.com"]
[Date "2021.02.16"]
[Round "3"]
[White "sbouchet"]
[Black "Ekose"]
[Result "0-1"]
[WhiteElo "2390"]
[BlackElo "2633"]
[TimeControl "180+1"]
[EndTime "10:31:29 PST"]
[Termination "Ekose won on time"]

1. e4 {[%clk 0:03:00.9]} 1... e6 {[%clk 0:02:58.6]} 2. d4 {[%clk 0:03:00.6]}
2... d5 {[%clk 0:02:58.7]} 3. Nd2 {[%clk 0:03:01.1]} 3... Nf6 {[%clk 0:02:57.3]}
4. e5 {[%clk 0:03:00.6]} 4... Nfd7 {[%clk 0:02:57.7]} 5. f4 {[%clk 0:03:00.8]}
5... c5 {[%clk 0:02:57.8]} 6. c3 {[%clk 0:03:00.3]} 6... Nc6 {[%clk 0:02:57.3]}
7. Ndf3 {[%clk 0:03:00.2]} 7... Qb6 {[%clk 0:02:51.2]} 8. g3 {[%clk 0:02:47.2]}
8... cxd4 {[%clk 0:02:50.9]} 9. cxd4 {[%clk 0:02:46.9]} 9... Bb4+ {[%clk
0:02:51.5]} 10. Kf2 {[%clk 0:02:45.8]} 10... f6 {[%clk 0:02:50.4]} 11. Kg2
{[%clk 0:02:43.2]} 11... O-O {[%clk 0:02:50.5]} 12. Bd3 {[%clk 0:02:03.5]} 12...
Be7 {[%clk 0:02:30.3]} 13. Ne2 {[%clk 0:01:56.9]} 13... f5 {[%clk 0:01:48.1]}
14. b3 {[%clk 0:01:43]} 14... Qd8 {[%clk 0:01:47.9]} 15. Be3 {[%clk 0:01:41.2]}
15... Nb6 {[%clk 0:01:45.1]} 16. Rg1 {[%clk 0:01:40.9]} 16... Bd7 {[%clk
0:01:45.1]} 17. Kh1 {[%clk 0:01:41.4]} 17... Kh8 {[%clk 0:01:45.6]} 18. g4
{[%clk 0:01:41.8]} 18... g6 {[%clk 0:01:46.2]} 19. Bf2 {[%clk 0:01:00.9]} 19...
Rc8 {[%clk 0:01:40.2]} 20. Rc1 {[%clk 0:00:58.6]} 20... Nb4 {[%clk 0:01:39.5]}
21. Bb1 {[%clk 0:00:54.1]} 21... Bb5 {[%clk 0:01:35.8]} 22. h4 {[%clk
0:00:42.7]} 22... Bxe2 {[%clk 0:01:31.3]} 23. Qxe2 {[%clk 0:00:39.5]} 23... Rxc1
{[%clk 0:01:31.6]} 24. Rxc1 {[%clk 0:00:37.8]} 24... fxg4 {[%clk 0:01:32]} 25.
Ng5 {[%clk 0:00:37.8]} 25... Bxg5 {[%clk 0:01:31.6]} 26. fxg5 {[%clk 0:00:32.3]}
26... Rf3 {[%clk 0:01:28.2]} 27. Rg1 {[%clk 0:00:16.9]} 27... Qf8 {[%clk
0:01:27.4]} 28. Be3 {[%clk 0:00:09.2]} 28... Rh3+ {[%clk 0:01:19.3]} 29. Kg2
{[%clk 0:00:09.5]} 29... Qf3+ {[%clk 0:01:09.4]} 30. Qxf3 {[%clk 0:00:09.7]}
30... Rxf3 {[%clk 0:01:10.3]} 31. Bf2 {[%clk 0:00:09.6]} 31... Rc3 {[%clk
0:01:01.9]} 32. Be1 {[%clk 0:00:07]} 32... Nxa2 {[%clk 0:00:53]} 33. Bxc3 {[%clk
0:00:06.9]} 33... Nxc3 {[%clk 0:00:53.3]} 34. Bd3 {[%clk 0:00:07]} 34... Na2
{[%clk 0:00:39.3]} 35. Ra1 {[%clk 0:00:06.2]} 35... Nb4 {[%clk 0:00:38.8]} 36.
Bb5 {[%clk 0:00:05.1]} 36... a6 {[%clk 0:00:37.5]} 37. Be2 {[%clk 0:00:03.7]}
37... Nc2 {[%clk 0:00:32.6]} 38. Rd1 {[%clk 0:00:03.8]} 38... Ne3+ {[%clk
0:00:32.1]} 39. Kg3 {[%clk 0:00:04.4]} 39... Nxd1 {[%clk 0:00:33]} 40. Bxd1
{[%clk 0:00:04.4]} 40... Kg7 {[%clk 0:00:33]} 41. Kxg4 {[%clk 0:00:05.2]} 41...
Nd7 {[%clk 0:00:27.9]} 42. Kf4 {[%clk 0:00:04.5]} 42... Kf7 {[%clk 0:00:27.2]}
43. Ke3 {[%clk 0:00:04.8]} 43... Nb8 {[%clk 0:00:27.7]} 44. Kd3 {[%clk
0:00:04.8]} 44... Nc6 {[%clk 0:00:28.3]} 45. Kc3 {[%clk 0:00:05.5]} 45... a5
{[%clk 0:00:28.6]} 46. Be2 {[%clk 0:00:05]} 46... Ne7 {[%clk 0:00:25.4]} 47. Bg4
{[%clk 0:00:04]} 47... b5 {[%clk 0:00:20.6]} 48. Bh3 {[%clk 0:00:03.5]} 48...
Nf5 {[%clk 0:00:17.6]} 49. Bxf5 {[%clk 0:00:02.9]} 49... gxf5 {[%clk 0:00:18.1]}
50. h5 {[%clk 0:00:01.4]} 50... f4 {[%clk 0:00:18.2]} 51. Kd3 {[%clk 0:00:01.5]}
51... a4 {[%clk 0:00:18.7]} 0-1

[Event "*** Titled Tuesday Blitz"]
[Site "Chess.com"]
[Date "2021.02.16"]
[Round "3"]
[White "semchik73"]
[Black "Euge_chess"]
[Result "1-0"]
[WhiteElo "2339"]
[BlackElo "2101"]
[TimeControl "180+1"]
[EndTime "10:31:32 PST"]
[Termination "semchik73 won on time"]

1. Nf3 {[%clk 0:03:00.6]} 1... Nf6 {[%clk 0:02:59.6]} 2. c4 {[%clk 0:03:00.7]}
2... e6 {[%clk 0:02:59.4]} 3. Nc3 {[%clk 0:03:01.2]} 3... c5 {[%clk 0:02:58.2]}
4. d4 {[%clk 0:03:01.5]} 4... Nc6 {[%clk 0:02:55.2]} 5. d5 {[%clk 0:03:01.4]}
5... exd5 {[%clk 0:02:55.2]} 6. cxd5 {[%clk 0:03:01.9]} 6... Nb4 {[%clk
0:02:55.3]} 7. e4 {[%clk 0:03:02]} 7... d6 {[%clk 0:02:55]} 8. a3 {[%clk
0:03:01.1]} 8... Na6 {[%clk 0:02:54.7]} 9. Bd3 {[%clk 0:02:55.2]} 9... g6 {[%clk
0:02:54]} 10. O-O {[%clk 0:02:55.5]} 10... Bg7 {[%clk 0:02:54]} 11. Bf4 {[%clk
0:02:50.7]} 11... Nc7 {[%clk 0:02:50.7]} 12. h3 {[%clk 0:02:47.5]} 12... O-O
{[%clk 0:02:50.1]} 13. Nd2 {[%clk 0:02:46.7]} 13... a6 {[%clk 0:02:48.4]} 14.
Nc4 {[%clk 0:02:46.6]} 14... Nfe8 {[%clk 0:02:39.6]} 15. a4 {[%clk 0:02:27.1]}
15... f5 {[%clk 0:02:33.2]} 16. Nb6 {[%clk 0:02:18.6]} 16... fxe4 {[%clk
0:02:15.7]} 17. Nxa8 {[%clk 0:02:15.6]} 17... exd3 {[%clk 0:02:07]} 18. Nxc7
{[%clk 0:02:14.4]} 18... Qxc7 {[%clk 0:01:47.7]} 19. Bg3 {[%clk 0:02:11.7]}
19... c4 {[%clk 0:01:46.8]} 20. Re1 {[%clk 0:02:08.4]} 20... Bf5 {[%clk
0:01:44]} 21. Qd2 {[%clk 0:02:05.7]} 21... Nf6 {[%clk 0:01:41.1]} 22. f3 {[%clk
0:01:52.4]} 22... Qc5+ {[%clk 0:01:40.1]} 23. Bf2 {[%clk 0:01:51.8]} 23... Qa5
{[%clk 0:01:30.6]} 24. Ne4 {[%clk 0:01:51.1]} 24... Qxd2 {[%clk 0:01:29.6]} 25.
Nxd2 {[%clk 0:01:51.5]} 25... Nxd5 {[%clk 0:01:29.6]} 26. Nxc4 {[%clk
0:01:51.8]} 26... Nb4 {[%clk 0:01:23.8]} 27. Nxd6 {[%clk 0:01:48.1]} 27... Nc2
{[%clk 0:01:20.9]} 28. Nxf5 {[%clk 0:01:47.2]} 28... gxf5 {[%clk 0:01:10.6]} 29.
Rad1 {[%clk 0:01:39.7]} 29... Nxe1 {[%clk 0:01:09.5]} 30. Bxe1 {[%clk
0:01:39.7]} 30... Rd8 {[%clk 0:01:05.7]} 31. Bc3 {[%clk 0:01:36.2]} 31... Bh6
{[%clk 0:00:56.9]} 32. Kf2 {[%clk 0:01:35.5]} 32... Kf7 {[%clk 0:00:55.7]} 33.
g3 {[%clk 0:01:35]} 33... Bf8 {[%clk 0:00:49.9]} 34. b4 {[%clk 0:01:28.7]} 34...
Ke6 {[%clk 0:00:40.7]} 35. Ke3 {[%clk 0:01:27.5]} 35... f4+ {[%clk 0:00:39.8]}
36. gxf4 {[%clk 0:01:27]} 36... Bh6 {[%clk 0:00:37.4]} 37. Rxd3 {[%clk
0:01:24.7]} 37... Rxd3+ {[%clk 0:00:36.8]} 38. Kxd3 {[%clk 0:01:24.5]} 38...
Bxf4 {[%clk 0:00:37.7]} 39. Ke4 {[%clk 0:01:24.7]} 39... Bd6 {[%clk 0:00:36.9]}
40. f4 {[%clk 0:01:23.5]} 40... Be7 {[%clk 0:00:34.3]} 41. f5+ {[%clk
0:01:23.3]} 41... Kd7 {[%clk 0:00:32.4]} 42. f6 {[%clk 0:01:22.6]} 42... Bf8
{[%clk 0:00:32.3]} 43. Kf5 {[%clk 0:01:22.6]} 43... b5 {[%clk 0:00:30.5]} 44.
axb5 {[%clk 0:01:19.6]} 44... axb5 {[%clk 0:00:31.4]} 45. Ke5 {[%clk 0:01:19]}
45... Bd6+ {[%clk 0:00:29.7]} 46. Kd5 {[%clk 0:01:17.9]} 46... Bf8 {[%clk
0:00:30.6]} 47. f7 {[%clk 0:00:51.5]} 47... Ke7 {[%clk 0:00:22.8]} 48. Kc5
{[%clk 0:00:50.8]} 48... Kxf7+ {[%clk 0:00:23.7]} 49. Kxb5 {[%clk 0:00:51.2]}
49... Bd6 {[%clk 0:00:22.3]} 50. Kc6 {[%clk 0:00:51]} 50... Bf4 {[%clk
0:00:19.6]} 51. b5 {[%clk 0:00:50.4]} 51... Ke6 {[%clk 0:00:17.7]} 52. b6 {[%clk
0:00:50.2]} 52... Kf5 {[%clk 0:00:13.7]} 53. Bb4 {[%clk 0:00:48.9]} 53... Ke6
{[%clk 0:00:12.2]} 54. b7 {[%clk 0:00:47.6]} 54... Bb8 {[%clk 0:00:11]} 55. Bc5
{[%clk 0:00:45.8]} 55... h6 {[%clk 0:00:10.5]} 56. Bb6 {[%clk 0:00:43.3]} 56...
h5 {[%clk 0:00:10.2]} 57. Bc7 {[%clk 0:00:43]} 57... Ba7 {[%clk 0:00:10.4]} 58.
Kb5 {[%clk 0:00:42.7]} 58... Kd7 {[%clk 0:00:09.7]} 59. Bf4 {[%clk 0:00:41.8]}
59... Ke6 {[%clk 0:00:08.7]} 60. Ka6 {[%clk 0:00:41.7]} 1-0

[Event "*** Titled Tuesday Blitz"]
[Site "Chess.com"]
[Date "2021.02.16"]
[Round "3"]
[White "KingCyber19"]
[Black "ellennilssen"]
[Result "1-0"]
[WhiteElo "2528"]
[BlackElo "2216"]
[TimeControl "180+1"]
[EndTime "10:31:33 PST"]
[Termination "KingCyber19 won on time"]

1. d4 {[%clk 0:03:00.9]} 1... Nf6 {[%clk 0:02:58]} 2. c4 {[%clk 0:03:00.7]} 2...
g6 {[%clk 0:02:58.1]} 3. g3 {[%clk 0:02:59.1]} 3... Bg7 {[%clk 0:02:53.5]} 4.
Bg2 {[%clk 0:02:59.6]} 4... d5 {[%clk 0:02:54]} 5. cxd5 {[%clk 0:02:59.1]} 5...
Nxd5 {[%clk 0:02:53.9]} 6. Nf3 {[%clk 0:02:59.3]} 6... Nb6 {[%clk 0:02:53.1]} 7.
O-O {[%clk 0:02:59.5]} 7... O-O {[%clk 0:02:53.4]} 8. Nc3 {[%clk 0:02:58.5]}
8... Nc6 {[%clk 0:02:53.8]} 9. e3 {[%clk 0:02:57.7]} 9... Re8 {[%clk 0:02:54.3]}
10. Qe2 {[%clk 0:02:49]} 10... e5 {[%clk 0:02:53.2]} 11. dxe5 {[%clk 0:02:49.2]}
11... Nxe5 {[%clk 0:02:51.6]} 12. Rd1 {[%clk 0:02:49.6]} 12... Qe7 {[%clk
0:02:48.6]} 13. Nxe5 {[%clk 0:02:49.8]} 13... Qxe5 {[%clk 0:02:36.5]} 14. Bd2
{[%clk 0:02:44.1]} 14... c6 {[%clk 0:02:35.2]} 15. Be1 {[%clk 0:02:41.8]} 15...
Be6 {[%clk 0:02:30.3]} 16. b3 {[%clk 0:02:36]} 16... Rad8 {[%clk 0:02:24.1]} 17.
Rxd8 {[%clk 0:02:31.1]} 17... Rxd8 {[%clk 0:02:25]} 18. Rd1 {[%clk 0:02:31]}
18... Qc7 {[%clk 0:02:12.9]} 19. Ne4 {[%clk 0:02:22.7]} 19... Nd5 {[%clk
0:02:07.8]} 20. Nc5 {[%clk 0:02:19.6]} 20... Bc8 {[%clk 0:02:00.8]} 21. Qc2
{[%clk 0:01:52.3]} 21... Bg4 {[%clk 0:01:51.9]} 22. Rd3 {[%clk 0:01:33.6]} 22...
Bf8 {[%clk 0:01:27.6]} 23. h3 {[%clk 0:01:25.3]} 23... Bc8 {[%clk 0:01:22]} 24.
Ne4 {[%clk 0:01:14.9]} 24... Qe7 {[%clk 0:01:13.5]} 25. Qd1 {[%clk 0:00:57.5]}
25... Bf5 {[%clk 0:01:10.6]} 26. Qf3 {[%clk 0:00:20.3]} 26... Re8 {[%clk
0:01:10]} 27. Rxd5 {[%clk 0:00:06.3]} 27... cxd5 {[%clk 0:01:03.2]} 28. Nc3
{[%clk 0:00:06.6]} 28... Be4 {[%clk 0:00:59.3]} 29. Qd1 {[%clk 0:00:04]} 29...
Bxg2 {[%clk 0:00:57.3]} 30. Kxg2 {[%clk 0:00:04.9]} 30... Rd8 {[%clk 0:00:55.1]}
31. Qd3 {[%clk 0:00:02.5]} 31... Bg7 {[%clk 0:00:53]} 32. Nxd5 {[%clk
0:00:02.4]} 32... Qd6 {[%clk 0:00:43.3]} 33. e4 {[%clk 0:00:03]} 33... h5 {[%clk
0:00:39.5]} 34. Bb4 {[%clk 0:00:02.8]} 34... Qd7 {[%clk 0:00:29]} 35. Be7 {[%clk
0:00:03.3]} 35... h4 {[%clk 0:00:18.8]} 36. Bxh4 {[%clk 0:00:02.7]} 36... f6
{[%clk 0:00:16.1]} 37. Bxf6 {[%clk 0:00:02.4]} 37... Kf7 {[%clk 0:00:12.3]} 38.
Bxg7 {[%clk 0:00:01.7]} 38... Kxg7 {[%clk 0:00:13.2]} 39. Qc3+ {[%clk
0:00:02.1]} 39... Kh6 {[%clk 0:00:07.4]} 40. Qe3+ {[%clk 0:00:02.5]} 40... Kg7
{[%clk 0:00:07.2]} 41. Qd4+ {[%clk 0:00:03]} 41... Kh6 {[%clk 0:00:06.8]} 42.
Qe5 {[%clk 0:00:03.2]} 42... Qd6 {[%clk 0:00:05.3]} 43. Qd4 {[%clk 0:00:03.6]}
43... Qd7 {[%clk 0:00:05]} 44. Qe3+ {[%clk 0:00:03.4]} 44... Kg7 {[%clk
0:00:05.3]} 45. Qg5 {[%clk 0:00:04.1]} 45... Qf7 {[%clk 0:00:03.6]} 46. Qxd8
{[%clk 0:00:03.7]} 46... b6 {[%clk 0:00:03.5]} 47. Qe7 {[%clk 0:00:04.1]} 1-0

[Event "*** Titled Tuesday Blitz"]
[Site "Chess.com"]
[Date "2021.02.16"]
[Round "3"]
[White "JosefineHeinemann"]
[Black "c_r_e_e_p_e_r"]
[Result "1-0"]
[WhiteElo "2604"]
[BlackElo "2394"]
[TimeControl "180+1"]
[EndTime "10:31:34 PST"]
[Termination "JosefineHeinemann won by checkmate"]

1. e4 {[%clk 0:03:00.9]} 1... c5 {[%clk 0:03:00.4]} 2. Nf3 {[%clk 0:03:00.2]}
2... e6 {[%clk 0:03:01.1]} 3. d4 {[%clk 0:03:00.3]} 3... cxd4 {[%clk 0:03:02]}
4. Nxd4 {[%clk 0:03:01.1]} 4... a6 {[%clk 0:03:02.7]} 5. c4 {[%clk 0:03:01.3]}
5... Qc7 {[%clk 0:03:01.8]} 6. Nc3 {[%clk 0:03:01.5]} 6... Nf6 {[%clk
0:03:02.4]} 7. Be2 {[%clk 0:03:01.5]} 7... b6 {[%clk 0:03:02.5]} 8. a3 {[%clk
0:03:01.4]} 8... Bb7 {[%clk 0:03:02.2]} 9. f3 {[%clk 0:03:02]} 9... d6 {[%clk
0:03:02.2]} 10. Be3 {[%clk 0:03:02.5]} 10... Be7 {[%clk 0:03:01.5]} 11. O-O
{[%clk 0:03:03]} 11... O-O {[%clk 0:03:01.5]} 12. Qd2 {[%clk 0:03:03.4]} 12...
Nbd7 {[%clk 0:02:55.6]} 13. b4 {[%clk 0:03:03.3]} 13... Rac8 {[%clk 0:02:55.2]}
14. Rfc1 {[%clk 0:03:03]} 14... Qb8 {[%clk 0:02:55.6]} 15. Bf1 {[%clk
0:03:01.1]} 15... Bd8 {[%clk 0:02:56]} 16. Nb3 {[%clk 0:02:59.2]} 16... Bc7
{[%clk 0:02:56.5]} 17. g3 {[%clk 0:02:53.9]} 17... h5 {[%clk 0:02:52.2]} 18. a4
{[%clk 0:02:52.3]} 18... h4 {[%clk 0:02:41.3]} 19. g4 {[%clk 0:02:52]} 19... Ne5
{[%clk 0:02:29.3]} 20. Be2 {[%clk 0:02:38.1]} 20... Rfe8 {[%clk 0:02:28.8]} 21.
g5 {[%clk 0:02:12.7]} 21... Nfd7 {[%clk 0:02:20.3]} 22. f4 {[%clk 0:02:12.7]}
22... Ng6 {[%clk 0:02:20]} 23. Rf1 {[%clk 0:02:07.5]} 23... d5 {[%clk
0:02:10.9]} 24. cxd5 {[%clk 0:02:04.7]} 24... exd5 {[%clk 0:02:11]} 25. b5
{[%clk 0:01:50.1]} 25... Nc5 {[%clk 0:01:47.4]} 26. Nxc5 {[%clk 0:01:43.7]}
26... bxc5 {[%clk 0:01:47.3]} 27. bxa6 {[%clk 0:01:44.3]} 27... Ba8 {[%clk
0:01:07]} 28. Rab1 {[%clk 0:01:38.5]} 28... Qa7 {[%clk 0:01:07.3]} 29. f5 {[%clk
0:01:39.1]} 29... Ne5 {[%clk 0:00:41.6]} 30. Nxd5 {[%clk 0:01:35.9]} 30... Bd6
{[%clk 0:00:32.3]} 31. g6 {[%clk 0:01:31.7]} 31... Rcd8 {[%clk 0:00:24.8]} 32.
gxf7+ {[%clk 0:01:26.2]} 32... Qxf7 {[%clk 0:00:23.9]} 33. Bg5 {[%clk
0:01:21.8]} 33... Rb8 {[%clk 0:00:09.6]} 34. Rxb8 {[%clk 0:01:07.2]} 34... Bxb8
{[%clk 0:00:10.5]} 35. Bxh4 {[%clk 0:01:07.8]} 35... c4 {[%clk 0:00:10]} 36. Bf2
{[%clk 0:01:02]} 36... Nd3 {[%clk 0:00:04]} 37. Bxd3 {[%clk 0:01:00]} 37... Bxd5
{[%clk 0:00:04.1]} 38. Bc2 {[%clk 0:00:53.1]} 38... Bxe4 {[%clk 0:00:03.7]} 39.
Bxe4 {[%clk 0:00:54]} 39... Rxe4 {[%clk 0:00:04]} 40. Qd8+ {[%clk 0:00:50.1]}
40... Re8 {[%clk 0:00:04.1]} 41. Qd4 {[%clk 0:00:48.4]} 41... Qxf5 {[%clk
0:00:02.5]} 42. Qxc4+ {[%clk 0:00:46.6]} 42... Kh8 {[%clk 0:00:01.9]} 43. a7
{[%clk 0:00:44.4]} 43... Be5 {[%clk 0:00:01.6]} 44. Qc6 {[%clk 0:00:35.2]} 44...
Qg4+ {[%clk 0:00:01.6]} 45. Qg2 {[%clk 0:00:34.6]} 45... Qc8 {[%clk 0:00:01.7]}
46. Re1 {[%clk 0:00:27]} 46... Qa8 {[%clk 0:00:01.4]} 47. Qxa8 {[%clk
0:00:24.1]} 47... Rxa8 {[%clk 0:00:02.3]} 48. Rxe5 {[%clk 0:00:24.4]} 48... Kh7
{[%clk 0:00:02.6]} 49. Rb5 {[%clk 0:00:24.5]} 49... Kg6 {[%clk 0:00:02.5]} 50.
Rb8 {[%clk 0:00:24.8]} 50... Rxa7 {[%clk 0:00:02.4]} 51. Bxa7 {[%clk 0:00:24.4]}
51... Kh6 {[%clk 0:00:03.1]} 52. Bf2 {[%clk 0:00:24]} 52... g6 {[%clk
0:00:02.3]} 53. a5 {[%clk 0:00:24.9]} 53... Kh5 {[%clk 0:00:02.6]} 54. a6 {[%clk
0:00:25.8]} 54... g5 {[%clk 0:00:03]} 55. a7 {[%clk 0:00:26.7]} 55... Kg4 {[%clk
0:00:03.4]} 56. a8=Q {[%clk 0:00:25.9]} 56... Kf4 {[%clk 0:00:04]} 57. Rf8+
{[%clk 0:00:25.1]} 57... Kg4 {[%clk 0:00:04]} 58. Qg2+ {[%clk 0:00:24.7]} 58...
Kh5 {[%clk 0:00:04.3]} 59. Rg8 {[%clk 0:00:24.6]} 59... Kh6 {[%clk 0:00:02.6]}
60. Qh3# {[%clk 0:00:24.9]} 1-0

[Event "*** Titled Tuesday Blitz"]
[Site "Chess.com"]
[Date "2021.02.16"]
[Round "3"]
[White "Aygehovit1992"]
[Black "FredyMatsuura"]
[Result "1-0"]
[WhiteElo "2594"]
[BlackElo "2284"]
[TimeControl "180+1"]
[EndTime "10:31:34 PST"]
[Termination "Aygehovit1992 won by resignation"]

1. Nf3 {[%clk 0:03:00.9]} 1... Nf6 {[%clk 0:02:59.5]} 2. b3 {[%clk 0:03:00.3]}
2... g6 {[%clk 0:02:56.1]} 3. Bb2 {[%clk 0:03:01.2]} 3... Bg7 {[%clk 0:02:56.6]}
4. g3 {[%clk 0:02:44.7]} 4... O-O {[%clk 0:02:55.6]} 5. Bg2 {[%clk 0:02:35.9]}
5... d5 {[%clk 0:02:54.2]} 6. O-O {[%clk 0:02:36.1]} 6... c6 {[%clk 0:02:39.1]}
7. e3 {[%clk 0:02:27.4]} 7... a5 {[%clk 0:02:35.4]} 8. a4 {[%clk 0:02:23]} 8...
Na6 {[%clk 0:02:31.7]} 9. Qe2 {[%clk 0:02:20.5]} 9... Nc5 {[%clk 0:02:29.4]} 10.
Na3 {[%clk 0:02:18.6]} 10... b6 {[%clk 0:02:25.4]} 11. d3 {[%clk 0:02:18.8]}
11... Bb7 {[%clk 0:02:22.5]} 12. Rfd1 {[%clk 0:02:12.6]} 12... Qc7 {[%clk
0:02:11.9]} 13. Be5 {[%clk 0:02:11.6]} 13... Qc8 {[%clk 0:02:08.5]} 14. Nd4
{[%clk 0:02:11.9]} 14... Nfd7 {[%clk 0:02:01.5]} 15. Bxg7 {[%clk 0:02:10.9]}
15... Kxg7 {[%clk 0:02:02.4]} 16. f4 {[%clk 0:02:11.1]} 16... e5 {[%clk
0:01:56.9]} 17. fxe5 {[%clk 0:02:09.8]} 17... Nxe5 {[%clk 0:01:56.9]} 18. e4
{[%clk 0:02:08.3]} 18... dxe4 {[%clk 0:01:51.8]} 19. Bxe4 {[%clk 0:02:06.2]}
19... Nxe4 {[%clk 0:01:49.8]} 20. Qxe4 {[%clk 0:02:06.7]} 20... Qc7 {[%clk
0:01:45.2]} 21. Qf4 {[%clk 0:02:06.1]} 21... Rae8 {[%clk 0:01:41.7]} 22. Rf1
{[%clk 0:02:05.6]} 22... f6 {[%clk 0:01:35.9]} 23. Nc4 {[%clk 0:02:04]} 23... c5
{[%clk 0:01:31.4]} 24. Nb5 {[%clk 0:01:35.5]} 24... Qc6 {[%clk 0:01:31]} 25. Qe4
{[%clk 0:01:35.9]} 25... Qxe4 {[%clk 0:01:28.9]} 26. dxe4 {[%clk 0:01:36.8]}
26... Nxc4 {[%clk 0:01:28.7]} 27. bxc4 {[%clk 0:01:37.2]} 27... Bxe4 {[%clk
0:01:17.8]} 28. Rf2 {[%clk 0:01:29.3]} 28... Re6 {[%clk 0:01:11.2]} 29. Rb1
{[%clk 0:01:27.1]} 29... Rf7 {[%clk 0:01:10.7]} 30. Re2 {[%clk 0:01:25]} 30...
f5 {[%clk 0:01:10]} 31. Kf2 {[%clk 0:01:17.9]} 31... Rd7 {[%clk 0:01:09.1]} 32.
h4 {[%clk 0:01:15.1]} 32... Rd4 {[%clk 0:01:08.8]} 33. Nxd4 {[%clk 0:01:14.7]}
33... cxd4 {[%clk 0:01:06.1]} 34. Rb5 {[%clk 0:01:14.3]} 34... Rc6 {[%clk
0:00:59.5]} 35. c5 {[%clk 0:01:14]} 35... bxc5 {[%clk 0:00:58.8]} 36. Rxa5
{[%clk 0:01:13.9]} 36... c4 {[%clk 0:00:59.2]} 37. Ra7+ {[%clk 0:01:13.8]} 37...
Kf6 {[%clk 0:00:54.6]} 38. a5 {[%clk 0:01:12.1]} 38... d3 {[%clk 0:00:53.7]} 39.
cxd3 {[%clk 0:01:12.3]} 39... cxd3 {[%clk 0:00:53.9]} 40. Rd2 {[%clk 0:01:11.9]}
40... h6 {[%clk 0:00:47.2]} 41. a6 {[%clk 0:01:11.1]} 41... g5 {[%clk
0:00:45.6]} 42. Ke3 {[%clk 0:01:04.2]} 42... Ke5 {[%clk 0:00:39.2]} 43. Re7+
{[%clk 0:01:01.8]} 43... Kf6 {[%clk 0:00:36.8]} 44. Ra7 {[%clk 0:01:00.6]} 44...
Ke5 {[%clk 0:00:36.5]} 45. Rb2 {[%clk 0:00:58.9]} 45... f4+ {[%clk 0:00:35.2]}
46. gxf4+ {[%clk 0:00:59.3]} 46... gxf4+ {[%clk 0:00:35.5]} 47. Kd2 {[%clk
0:01:00]} 47... f3 {[%clk 0:00:32.8]} 48. Rb5+ {[%clk 0:00:59.8]} 48... Kd4
{[%clk 0:00:31.8]} 49. Rd7+ {[%clk 0:00:59.1]} 49... Kc4 {[%clk 0:00:30.3]} 50.
Re5 {[%clk 0:00:59.3]} 50... Bg6 {[%clk 0:00:22.6]} 51. a7 {[%clk 0:00:58.3]}
51... Ra6 {[%clk 0:00:22.4]} 52. Re6 {[%clk 0:00:58.5]} 52... Ra2+ {[%clk
0:00:21.1]} 53. Ke3 {[%clk 0:00:55.4]} 53... Bf5 {[%clk 0:00:20.9]} 54. Rc7+
{[%clk 0:00:54.6]} 54... Kd5 {[%clk 0:00:19.9]} 55. Rf6 {[%clk 0:00:51.1]} 55...
Ke5 {[%clk 0:00:18.5]} 56. Rf8 {[%clk 0:00:42.2]} 56... f2 {[%clk 0:00:17]} 57.
Rc5+ {[%clk 0:00:41.8]} 57... Ke6 {[%clk 0:00:12.3]} 58. Rcxf5 {[%clk
0:00:41.2]} 58... d2 {[%clk 0:00:12.6]} 59. Ke2 {[%clk 0:00:32.7]} 1-0